fUST/lending_fUST_20250214
["ID","MTS","AMOUNT","RATE_DAILY","PERIOD"]
[352988342,1739476242186,-500.0,0.0001378,2]
[352988343,1739476242196,-500.0,0.0001378,2]
[352988344,1739476242206,-1600.1,0.0001378,2]
[352988345,1739476242216,-500.0,0.0001378,2]
[352988346,1739476242226,-649.4,0.0001378,2]
[352988347,1739476242235,-500.0,0.0001378,2]
[352988348,1739476242245,-500.0,0.0001378,2]
[352988349,1739476242254,-899.04,0.0001378,2]
[352988350,1739476242264,-6893.12,0.0001378,2]
[352988351,1739476242274,-500.0,0.0001378,2]
[352988352,1739476242284,-500.0,0.0001378,2]
[352988353,1739476242293,-2890.67,0.0001378,2]
[352988354,1739476242303,-500.0,0.0001378,2]
[352988356,1739476242313,-500.0,0.0001378,2]
[352988358,1739476242322,-530.99967519,0.0001378,2]
[352988360,1739476242332,-2073.17,0.0001378,2]
[352988362,1739476242342,-572.24,0.0001378,2]
[352988364,1739476242351,-500.0,0.0001378,2]
[352988366,1739476242360,-500.0,0.0001378,2]
[352988368,1739476242370,-552.36,0.0001378,2]
[352988370,1739476242379,-639.73,0.0001378,2]
[352988371,1739476242388,-1239.63,0.0001378,2]
[352988372,1739476242398,-577.54,0.0001378,2]
[352988373,1739476242407,-500.0,0.0001378,2]
[352988374,1739476242416,-873.79,0.0001378,2]
[352988375,1739476242426,-500.0,0.0001378,2]
[352988376,1739476242436,-830.83,0.0001378,2]
[352988377,1739476242445,-500.0,0.0001378,2]
[352988378,1739476242455,-807.61,0.0001378,2]
[352988379,1739476242465,-500.0,0.0001378,2]
[352988380,1739476242474,-500.0,0.0001378,2]
[352988381,1739476242484,-20060.39,0.0001378,2]
[352988382,1739476242493,-500.0,0.0001378,2]
[352988383,1739476242503,-769.31,0.0001378,2]
[352988384,1739476242513,-500.0,0.0001378,2]
[352988385,1739476242522,-9930.67,0.0001378,2]
[352988386,1739476242531,-503.74,0.0001378,2]
[352988387,1739476242541,-1102.91,0.0001378,2]
[352988388,1739476242550,-500.0,0.0001378,2]
[352988389,1739476242559,-500.0,0.0001378,2]
[352988390,1739476242570,-1206.97,0.0001378,2]
[352988391,1739476242580,-500.0,0.0001378,2]
[352988392,1739476242589,-696.9,0.0001378,2]
[352988393,1739476242599,-500.0,0.0001378,2]
[352988394,1739476242609,-500.0,0.0001378,2]
[352988395,1739476242619,-950.98,0.0001378,2]
[352988396,1739476242629,-587.48,0.0001378,2]
[352988397,1739476242639,-500.0,0.0001378,2]
[352988398,1739476242648,-500.0,0.0001378,2]
[352988399,1739476242657,-500.0,0.0001378,2]
[352988400,1739476242667,-500.0,0.0001378,2]
[352988401,1739476242676,-1568.22,0.0001378,2]
[352988402,1739476242685,-500.0,0.0001378,2]
[352988403,1739476242695,-500.0,0.0001378,2]
[352988404,1739476242704,-500.0,0.0001378,2]
[352988405,1739476242714,-1924.85,0.0001378,2]
[352988406,1739476242723,-500.0,0.0001378,2]
[352988407,1739476242733,-500.0,0.0001378,2]
[352988408,1739476242743,-500.0,0.0001378,2]
[352988409,1739476242752,-500.0,0.0001378,2]
[352988410,1739476242762,-585.52,0.0001378,2]
[352988411,1739476242771,-500.0,0.0001378,2]
[352988412,1739476242781,-915.79,0.0001378,2]
[352988413,1739476242790,-500.0,0.0001378,2]
[352988414,1739476242800,-500.0,0.0001378,2]
[352988415,1739476242809,-500.0,0.0001378,2]
[352988416,1739476242819,-500.0,0.0001378,2]
[352988418,1739476242828,-500.0,0.0001378,2]
[352988420,1739476242837,-542.81751405,0.0001378,2]
[352988422,1739476242847,-500.0,0.0001378,2]
[352988424,1739476242856,-500.0,0.0001378,2]
[352988426,1739476242866,-800.2,0.0001378,2]
[352988428,1739476242876,-500.0,0.0001378,2]
[352988429,1739476242889,-500.0,0.0001378,2]
[352988430,1739476242899,-4113.12,0.0001378,2]
[352988431,1739476242909,-802.43,0.0001378,2]
[352988432,1739476242919,-500.0,0.0001378,2]
[352988433,1739476242930,-500.0,0.0001378,2]
[352988434,1739476242939,-673.09,0.0001378,2]
[352988435,1739476242949,-500.0,0.0001378,2]
[352988436,1739476242959,-500.0,0.0001378,2]
[352988437,1739476242969,-500.0,0.0001378,2]
[352988438,1739476242979,-500.0,0.0001378,2]
[352988439,1739476242988,-500.0,0.0001378,2]
[352988440,1739476242998,-500.0,0.0001378,2]
[352988441,1739476243008,-500.0,0.0001378,2]
[352988442,1739476243017,-1518.39,0.0001378,2]
[352988443,1739476243027,-1928.05,0.0001378,2]
[352988444,1739476243037,-500.0,0.0001378,2]
[352988445,1739476243047,-500.0,0.0001378,2]
[352988446,1739476243057,-1787.65,0.0001378,2]
[352988447,1739476243066,-500.0,0.0001378,2]
[352988448,1739476243075,-641.97,0.0001378,2]
[352988449,1739476243085,-318.7574141,0.0001378,2]
[352988450,1739476243095,-500.0,0.0001378,2]
[352988451,1739476243104,-3031.55,0.0001378,2]
[352988452,1739476243114,-215.9004297,0.000138,2]
[352988453,1739476243123,-500.0,0.00013863,2]
[352988454,1739476243133,-500.0,0.00013863,2]
[352988455,1739476243143,-500.0,0.00013863,2]
[352988456,1739476243153,-339.56157223,0.00013863,2]
[352988457,1739476243163,-500.0,0.00013863,2]
[352988458,1739476243172,-500.0,0.00013863,2]
[352988459,1739476243182,-500.0,0.00013863,2]
[352988460,1739476243192,-500.0,0.00013863,2]
[352988461,1739476243201,-513.62,0.00013863,2]
[352988462,1739476243211,-500.0,0.00013863,2]
[352988463,1739476243221,-500.0,0.00013863,2]
[352988464,1739476243230,-531.63,0.00013863,2]
[352988465,1739476243240,-541.97,0.00013863,2]
[352988466,1739476243250,-500.0,0.00013863,2]
[352988467,1739476243261,-574.38,0.00013863,2]
[352988468,1739476243270,-500.0,0.00013863,2]
[352988469,1739476243280,-500.0,0.00013863,2]
[352988470,1739476243290,-669.43,0.00013863,2]
[352988471,1739476243299,-500.0,0.00013863,2]
[352988472,1739476243309,-500.0,0.00013863,2]
[352988484,1739476243497,-500.0,0.00013863,2]
[352988485,1739476243508,-870.15,0.00013863,2]
[352988486,1739476243518,-869.6,0.00013863,2]
[352988487,1739476243528,-500.0,0.00013863,2]
[352988488,1739476243537,-500.0,0.00013863,2]
[352988489,1739476243548,-518.61,0.00013863,2]
[352988490,1739476243557,-500.0,0.00013863,2]
[352988491,1739476243567,-421.99817188,0.00013863,2]
[352988492,1739476243577,-500.0,0.00013863,2]
[352988493,1739476243586,-500.0,0.00013863,2]
[352988494,1739476243596,-500.0,0.00013863,2]
[352988495,1739476243605,-500.0,0.00013863,2]
[352988497,1739476243615,-756.32,0.00013863,2]
[352988498,1739476243624,-948.23,0.00013863,2]
[352988499,1739476243634,-500.0,0.00013863,2]
[352988500,1739476243644,-264.55542862,0.00013863,2]
[352988501,1739476243653,-500.0,0.00013863,2]
[352988503,1739476243662,-500.0,0.00013863,2]
[352988505,1739476243672,-212.53760609,0.00013863,2]
[352988507,1739476243682,-500.0,0.00013863,2]
[352988509,1739476243691,-500.0,0.00013863,2]
[352988511,1739476243701,-1600.1,0.00013863,2]
[352988513,1739476243710,-500.0,0.00013863,2]
[352988515,1739476243720,-649.4,0.00013863,2]
[352988517,1739476243729,-500.0,0.00013863,2]
[352988519,1739476243739,-311.19698643,0.00013863,2]
[352988521,1739476243748,-899.04,0.00013863,2]
[352988523,1739476243758,-6893.12,0.00013863,2]
[352988525,1739476243767,-2890.67,0.00013863,2]
[352988527,1739476243777,-500.0,0.00013863,2]
[352988529,1739476243786,-2073.17,0.00013863,2]
[352988531,1739476243795,-572.24,0.00013863,2]
[352988532,1739476243805,-593.77075687,0.00013863,2]
[352988535,1739476243815,-552.36,0.00013863,2]
[352988537,1739476243825,-639.73,0.00013863,2]
[352988539,1739476243835,-1239.63,0.00013863,2]
[352988541,1739476243844,-577.54,0.00013863,2]
[352988543,1739476243853,-873.79,0.00013863,2]
[352988544,1739476243864,-500.0,0.00013863,2]
[352988545,1739476243873,-830.83,0.00013863,2]
[352988547,1739476243884,-500.0,0.00013863,2]
[352988549,1739476243894,-807.61,0.00013863,2]
[352988551,1739476243903,-500.0,0.00013863,2]
[352988552,1739476243913,-500.0,0.00013863,2]
[352988554,1739476243922,-20060.39,0.00013863,2]
[352988556,1739476243931,-500.0,0.00013863,2]
[352988558,1739476243941,-769.31,0.00013863,2]
[352988560,1739476243951,-9930.67,0.00013863,2]
[352988562,1739476243963,-500.0,0.00013863,2]
[352988564,1739476243973,-503.74,0.00013863,2]
[352988566,1739476243982,-1102.91,0.00013863,2]
[352988568,1739476243992,-500.0,0.00013863,2]
[352988570,1739476244002,-1206.97,0.00013863,2]
[352988572,1739476244014,-500.0,0.00013863,2]
[352988574,1739476244024,-696.9,0.00013863,2]
[352988576,1739476244034,-500.0,0.00013863,2]
[352988578,1739476244043,-500.0,0.00013863,2]
[352988580,1739476244054,-950.98,0.00013863,2]
[352988582,1739476244064,-587.48,0.00013863,2]
[352988584,1739476244073,-500.0,0.00013863,2]
[352988586,1739476244083,-500.0,0.00013863,2]
[352988588,1739476244093,-1568.22,0.00013863,2]
[352988590,1739476244102,-500.0,0.00013863,2]
[352988592,1739476244112,-500.0,0.00013863,2]
[352988594,1739476244121,-500.0,0.00013863,2]
[352988596,1739476244131,-1924.85,0.00013863,2]
[352988598,1739476244142,-500.0,0.00013863,2]
[352988600,1739476244152,-500.0,0.00013863,2]
[352988602,1739476244163,-585.52,0.00013863,2]
[352988604,1739476244173,-915.79,0.00013863,2]
[352988606,1739476244182,-500.0,0.00013863,2]
[352988608,1739476244191,-500.0,0.00013863,2]
[352988610,1739476244200,-500.0,0.00013863,2]
[352988612,1739476244209,-500.0,0.00013863,2]
[352988614,1739476244219,-800.2,0.00013863,2]
[352988616,1739476244229,-500.0,0.00013863,2]
[352988618,1739476244238,-4113.12,0.00013863,2]
[352988620,1739476244248,-802.43,0.00013863,2]
[352988622,1739476244257,-500.0,0.00013863,2]
[352988624,1739476244266,-500.0,0.00013863,2]
[352988626,1739476244275,-673.09,0.00013863,2]
[352988628,1739476244285,-500.0,0.00013863,2]
[352988630,1739476244295,-500.0,0.00013863,2]
[352988632,1739476244304,-500.0,0.00013863,2]
[352988634,1739476244313,-500.0,0.00013863,2]
[352988636,1739476244323,-500.0,0.00013863,2]
[352988638,1739476244332,-1518.39,0.00013863,2]
[352988640,1739476244342,-1928.05,0.00013863,2]
[352988642,1739476244352,-500.0,0.00013863,2]
[352988644,1739476244362,-1787.65,0.00013863,2]
[352988646,1739476244371,-500.0,0.00013863,2]
[352988648,1739476244382,-500.0,0.00013863,2]
[352988650,1739476244391,-641.97,0.00013863,2]
[352988652,1739476244403,-3031.55,0.00013863,2]
[352988654,1739476244412,-940.236,0.00013918,2]
[352988656,1739476244422,-347.96451657,0.00013935,2]
[352988658,1739476244432,-500.0,0.00013945,2]
[352988660,1739476244441,-625.51123241,0.00013945,2]
[352988662,1739476244451,-173.63414984,0.00013945,2]
[352988664,1739476244460,-500.0,0.00013945,2]
[352988666,1739476244469,-81.80694211,0.00013945,2]
[352988680,1739476244594,-418.19305789,0.00013945,2]
[352988682,1739476244604,-500.0,0.00013945,2]
[352988684,1739476244614,-500.0,0.00013945,2]
[352988686,1739476244624,-513.62,0.00013945,2]
[352988688,1739476244634,-500.0,0.00013945,2]
[352988690,1739476244643,-500.0,0.00013945,2]
[352988692,1739476244653,-531.63,0.00013945,2]
[352988694,1739476244662,-541.97,0.00013945,2]
[352988696,1739476244672,-500.0,0.00013945,2]
[352988698,1739476244681,-574.38,0.00013945,2]
[352988700,1739476244692,-500.0,0.00013945,2]
[352988702,1739476244703,-35.88954545,0.00013945,2]
[352988705,1739476244715,-464.11045455,0.00013945,2]
[352988707,1739476244725,-669.43,0.00013945,2]
[352988709,1739476244734,-500.0,0.00013945,2]
[352988711,1739476244744,-500.0,0.00013945,2]
[352988713,1739476244754,-500.0,0.00013945,2]
[352988714,1739476244764,-870.15,0.00013945,2]
[352988716,1739476244774,-869.6,0.00013945,2]
[352988719,1739476244784,-500.0,0.00013945,2]
[352988720,1739476244793,-500.0,0.00013945,2]
[352988723,1739476244804,-518.61,0.00013945,2]
[352988725,1739476244814,-500.0,0.00013945,2]
[352988727,1739476244824,-500.0,0.00013945,2]
[352988729,1739476244835,-500.0,0.00013945,2]
[352988730,1739476244844,-500.0,0.00013945,2]
[352988733,1739476244857,-631.3908738,0.00013945,2]
[352988736,1739476244876,-124.9291262,0.00013945,2]
[352988737,1739476244896,-948.23,0.00013945,2]
[352988739,1739476244907,-24.62934172,0.00013945,2]
[352988742,1739476244928,-543.91052983,0.00013945,2]
[352988744,1739476244938,-500.0,0.00013945,2]
[352988746,1739476244947,-168.69391101,0.00013945,2]
[352988748,1739476244960,-500.0,0.00013945,2]
[352988750,1739476244972,-423.79166931,0.00013945,2]
[352988769,1739476245146,-1659.36,0.00013698,2]
[352988772,1739476245156,-1659.36,0.0001378,2]
[352988775,1739476245166,-1659.36,0.00013863,2]
[352988778,1739476245176,-507.61441968,0.00013945,2]
[352988781,1739476245185,-500.0,0.00013945,2]
[352988784,1739476245195,-649.4,0.00013945,2]
[352988787,1739476245206,-899.04,0.00013945,2]
[352988790,1739476245216,-6893.12,0.00013945,2]
[352988793,1739476245226,-2890.67,0.00013945,2]
[352988796,1739476245237,-500.0,0.00013945,2]
[352988799,1739476245248,-2073.17,0.00013945,2]
[352988802,1739476245258,-572.24,0.00013945,2]
[352988806,1739476245268,-552.36,0.00013945,2]
[352988810,1739476245282,-639.73,0.00013945,2]
[352988813,1739476245293,-1239.63,0.00013945,2]
[352988816,1739476245305,-577.54,0.00013945,2]
[352988820,1739476245314,-873.79,0.00013945,2]
[352988824,1739476245324,-500.0,0.00013945,2]
[352988828,1739476245334,-830.83,0.00013945,2]
[352988831,1739476245343,-500.0,0.00013945,2]
[352988834,1739476245353,-807.61,0.00013945,2]
[352988837,1739476245362,-500.0,0.00013945,2]
[352988840,1739476245371,-500.0,0.00013945,2]
[352988843,1739476245381,-20060.39,0.00013945,2]
[352988846,1739476245391,-500.0,0.00013945,2]
[352988849,1739476245401,-769.31,0.00013945,2]
[352988851,1739476245411,-9930.67,0.00013945,2]
[352988854,1739476245420,-503.74,0.00013945,2]
[352988857,1739476245429,-1102.91,0.00013945,2]
[352988860,1739476245440,-500.0,0.00013945,2]
[352988863,1739476245449,-1206.97,0.00013945,2]
[352988866,1739476245459,-500.0,0.00013945,2]
[352988868,1739476245468,-696.9,0.00013945,2]
[352988871,1739476245479,-500.0,0.00013945,2]
[352988874,1739476245489,-950.98,0.00013945,2]
[352988877,1739476245499,-587.48,0.00013945,2]
[352988880,1739476245509,-500.0,0.00013945,2]
[352988883,1739476245518,-500.0,0.00013945,2]
[352988886,1739476245528,-1568.22,0.00013945,2]
[352988888,1739476245537,-500.0,0.00013945,2]
[352988891,1739476245547,-500.0,0.00013945,2]
[352988894,1739476245557,-500.0,0.00013945,2]
[352988897,1739476245567,-1924.85,0.00013945,2]
[352988900,1739476245576,-534.86784108,0.00013945,2]
[352988903,1739476245585,-500.0,0.00013945,2]
[352988906,1739476245594,-585.52,0.00013945,2]
[352988909,1739476245604,-915.79,0.00013945,2]
[352988912,1739476245613,-500.0,0.00013945,2]
[352988915,1739476245623,-500.0,0.00013945,2]
[352988918,1739476245632,-500.0,0.00013945,2]
[352988921,1739476245643,-500.0,0.00013945,2]
[352988924,1739476245653,-800.2,0.00013945,2]
[352988927,1739476245663,-4113.12,0.00013945,2]
[352988930,1739476245672,-802.43,0.00013945,2]
[352988933,1739476245682,-500.0,0.00013945,2]
[352988936,1739476245692,-500.0,0.00013945,2]
[352988939,1739476245701,-673.09,0.00013945,2]
[352988942,1739476245710,-500.0,0.00013945,2]
[352988946,1739476245721,-500.0,0.00013945,2]
[352988949,1739476245731,-500.0,0.00013945,2]
[352988952,1739476245740,-500.0,0.00013945,2]
[352988953,1739476245749,-500.0,0.00013945,2]
[352988957,1739476245759,-1518.39,0.00013945,2]
[352988960,1739476245769,-1928.05,0.00013945,2]
[352988963,1739476245778,-500.0,0.00013945,2]
[352988966,1739476245787,-1787.65,0.00013945,2]
[352988969,1739476245797,-500.0,0.00013945,2]
[352988971,1739476245807,-500.0,0.00013945,2]
[352988973,1739476245816,-641.97,0.00013945,2]
[352988975,1739476245826,-3031.55,0.00013945,2]
[352988977,1739476245835,-1659.36,0.00013945,2]
[352988979,1739476245845,-398.16990808,0.00013986,2]
[352988981,1739476245854,-500.0,0.00013993,2]
[352988983,1739476245863,-517.07307425,0.00014,2]
[352988986,1739476245874,-150.0,0.00014017,2]
[352988989,1739476245888,-538.0,0.00014017,2]
[352988992,1739476245898,-1970.0,0.00014017,2]
[352988995,1739476245907,-2293.0,0.00014017,2]
[352988998,1739476245918,-500.0,0.00014027,2]
[352989000,1739476245929,-241.81633965,0.00014027,2]
[352989003,1739476245938,-500.0,0.00014027,2]
[352989006,1739476245947,-500.0,0.00014027,2]
[352989009,1739476245958,-500.0,0.00014027,2]
[352989012,1739476245967,-513.62,0.00014027,2]
[352989015,1739476245977,-500.0,0.00014027,2]
[352989018,1739476245986,-500.0,0.00014027,2]
[352989021,1739476245996,-531.63,0.00014027,2]
[352989024,1739476246005,-541.97,0.00014027,2]
[352989027,1739476246015,-500.0,0.00014027,2]
[352989030,1739476246024,-574.38,0.00014027,2]
[352989033,1739476246034,-282.76669371,0.00014027,2]
[352989036,1739476246043,-500.0,0.00014027,2]
[352989039,1739476246054,-669.43,0.00014027,2]
[352989042,1739476246064,-500.0,0.00014027,2]
[352989045,1739476246073,-500.0,0.00014027,2]
[352989048,1739476246083,-500.0,0.00014027,2]
[352989051,1739476246093,-870.15,0.00014027,2]
[352989054,1739476246103,-869.6,0.00014027,2]
[352989056,1739476246112,-500.0,0.00014027,2]
[352989059,1739476246121,-500.0,0.00014027,2]
[352989062,1739476246131,-518.61,0.00014027,2]
[352989065,1739476246141,-500.0,0.00014027,2]
[352989069,1739476246151,-500.0,0.00014027,2]
[352989072,1739476246160,-500.0,0.00014027,2]
[352989075,1739476246170,-500.0,0.00014027,2]
[352989078,1739476246180,-756.32,0.00014027,2]
[352989081,1739476246190,-948.23,0.00014027,2]
[352989084,1739476246199,-500.0,0.00014027,2]
[352989087,1739476246209,-1600.1,0.00014027,2]
[352989089,1739476246224,-500.0,0.00014027,2]
[352989093,1739476246235,-649.4,0.00014027,2]
[352989121,1739476246367,-899.04,0.00014027,2]
[352989125,1739476246378,-6893.12,0.00014027,2]
[352989128,1739476246387,-2890.67,0.00014027,2]
[352989131,1739476246396,-500.0,0.00014027,2]
[352989134,1739476246406,-2073.17,0.00014027,2]
[352989136,1739476246415,-572.24,0.00014027,2]
[352989139,1739476246424,-552.36,0.00014027,2]
[352989142,1739476246434,-639.73,0.00014027,2]
[352989145,1739476246443,-1239.63,0.00014027,2]
[352989148,1739476246452,-577.54,0.00014027,2]
[352989150,1739476246462,-873.79,0.00014027,2]
[352989153,1739476246472,-500.0,0.00014027,2]
[352989157,1739476246482,-830.83,0.00014027,2]
[352989160,1739476246492,-807.61,0.00014027,2]
[352989164,1739476246503,-500.0,0.00014027,2]
[352989167,1739476246513,-290.90049134,0.00014027,2]
[352989170,1739476246523,-10647.79982433,0.00014027,2]
[352989173,1739476246537,-2353.23533855,0.00014027,2]
[352989176,1739476246550,-7059.35483712,0.00014027,2]
[352989179,1739476246560,-500.0,0.00014027,2]
[352989182,1739476246569,-769.31,0.00014027,2]
[352989185,1739476246579,-9930.67,0.00014027,2]
[352989187,1739476246588,-503.74,0.00014027,2]
[352989190,1739476246598,-1102.91,0.00014027,2]
[352989193,1739476246607,-500.0,0.00014027,2]
[352989196,1739476246617,-1206.97,0.00014027,2]
[352989199,1739476246627,-500.0,0.00014027,2]
[352989202,1739476246636,-696.9,0.00014027,2]
[352989205,1739476246645,-500.0,0.00014027,2]
[352989208,1739476246654,-950.98,0.00014027,2]
[352989211,1739476246664,-587.48,0.00014027,2]
[352989214,1739476246673,-500.0,0.00014027,2]
[352989217,1739476246683,-500.0,0.00014027,2]
[352989220,1739476246693,-1568.22,0.00014027,2]
[352989223,1739476246703,-500.0,0.00014027,2]
[352989226,1739476246712,-500.0,0.00014027,2]
[352989229,1739476246722,-500.0,0.00014027,2]
[352989231,1739476246732,-1924.85,0.00014027,2]
[352989234,1739476246742,-585.52,0.00014027,2]
[352989236,1739476246751,-500.0,0.00014027,2]
[352989238,1739476246762,-915.79,0.00014027,2]
[352989241,1739476246772,-500.0,0.00014027,2]
[352989243,1739476246783,-356.83929773,0.00014027,2]
[352989245,1739476246792,-500.0,0.00014027,2]
[352989247,1739476246803,-324.72066944,0.00014027,2]
[352989249,1739476246816,-475.47933056,0.00014027,2]
[352989251,1739476246826,-4113.12,0.00014027,2]
[352989253,1739476246836,-802.43,0.00014027,2]
[352989255,1739476246846,-500.0,0.00014027,2]
[352989257,1739476246855,-500.0,0.00014027,2]
[352989259,1739476246865,-673.09,0.00014027,2]
[352989261,1739476246874,-500.0,0.00014027,2]
[352989263,1739476246886,-500.0,0.00014027,2]
[352989265,1739476246897,-500.0,0.00014027,2]
[352989267,1739476246906,-500.0,0.00014027,2]
[352989269,1739476246916,-500.0,0.00014027,2]
[352989271,1739476246927,-1518.39,0.00014027,2]
[352989273,1739476246936,-1928.05,0.00014027,2]
[352989275,1739476246945,-500.0,0.00014027,2]
[352989277,1739476246955,-1787.65,0.00014027,2]
[352989279,1739476246967,-500.0,0.00014027,2]
[352989281,1739476246977,-500.0,0.00014027,2]
[352989283,1739476246986,-3031.55,0.00014027,2]
[352989285,1739476246996,-641.97,0.00014027,2]
[352989287,1739476247005,-1659.36,0.00014027,2]
[352989289,1739476247014,-12911.43296905,0.00014076,2]
[352989291,1739476247024,-1482.68655931,0.00014091,2]
[352989292,1739476247034,-500.0,0.00014094,2]
[352989293,1739476247043,-500.0,0.00014106,2]
[352989294,1739476247055,-500.0,0.00014109,2]
[352989295,1739476247067,-500.0,0.00014109,2]
[352989296,1739476247076,-500.0,0.00014109,2]
[352989297,1739476247087,-500.0,0.00014109,2]
[352989298,1739476247097,-513.62,0.00014109,2]
[352989299,1739476247108,-500.0,0.00014109,2]
[352989300,1739476247118,-500.0,0.00014109,2]
[352989301,1739476247128,-531.63,0.00014109,2]
[352989302,1739476247137,-541.97,0.00014109,2]
[352989303,1739476247147,-500.0,0.00014109,2]
[352989304,1739476247157,-574.38,0.00014109,2]
[352989305,1739476247167,-424.66942226,0.00014109,2]
[352989306,1739476247177,-669.43,0.00014109,2]
[352989307,1739476247186,-500.0,0.00014109,2]
[352989308,1739476247196,-500.0,0.00014109,2]
[352989309,1739476247205,-500.0,0.00014109,2]
[352989310,1739476247215,-870.15,0.00014109,2]
[352989311,1739476247225,-869.6,0.00014109,2]
[352989313,1739476247235,-500.0,0.00014109,2]
[352989315,1739476247245,-500.0,0.00014109,2]
[352989317,1739476247254,-518.61,0.00014109,2]
[352989319,1739476247264,-500.0,0.00014109,2]
[352989321,1739476247274,-500.0,0.00014109,2]
[352989323,1739476247283,-609.65008834,0.00014109,2]
[352989325,1739476247293,-500.0,0.00014109,2]
[352989327,1739476247304,-756.32,0.00014109,2]
[352989329,1739476247314,-948.23,0.00014109,2]
[352989331,1739476247323,-500.0,0.00014109,2]
[352989333,1739476247332,-1600.1,0.00014109,2]
[352989335,1739476247341,-500.0,0.00014109,2]
[352989337,1739476247351,-649.4,0.00014109,2]
[352989339,1739476247362,-899.04,0.00014109,2]
[352989341,1739476247372,-6893.12,0.00014109,2]
[352989343,1739476247381,-2890.67,0.00014109,2]
[352989345,1739476247391,-500.0,0.00014109,2]
[352989347,1739476247401,-2073.17,0.00014109,2]
[352989349,1739476247411,-572.24,0.00014109,2]
[352989351,1739476247421,-552.36,0.00014109,2]
[352989353,1739476247430,-639.73,0.00014109,2]
[352989355,1739476247440,-1239.63,0.00014109,2]
[352989357,1739476247449,-577.54,0.00014109,2]
[352989359,1739476247459,-873.79,0.00014109,2]
[352989360,1739476247468,-371.13271327,0.00014109,2]
[352989362,1739476247478,-830.83,0.00014109,2]
[352989365,1739476247488,-807.61,0.00014109,2]
[352989367,1739476247498,-500.0,0.00014109,2]
[352989369,1739476247507,-4622.0599407,0.00014109,2]
[352989378,1739476247587,-15438.3300593,0.00014109,2]
[352989380,1739476247597,-500.0,0.00014109,2]
[352989382,1739476247606,-769.31,0.00014109,2]
[352989384,1739476247615,-9930.67,0.00014109,2]
[352989386,1739476247625,-503.74,0.00014109,2]
[352989388,1739476247634,-1102.91,0.00014109,2]
[352989390,1739476247643,-500.0,0.00014109,2]
[352989392,1739476247653,-1206.97,0.00014109,2]
[352989394,1739476247662,-500.0,0.00014109,2]
[352989396,1739476247671,-696.9,0.00014109,2]
[352989398,1739476247681,-500.0,0.00014109,2]
[352989400,1739476247691,-950.98,0.00014109,2]
[352989402,1739476247700,-587.48,0.00014109,2]
[352989404,1739476247710,-500.0,0.00014109,2]
[352989406,1739476247720,-500.0,0.00014109,2]
[352989408,1739476247729,-1568.22,0.00014109,2]
[352989410,1739476247738,-500.0,0.00014109,2]
[352989412,1739476247747,-500.0,0.00014109,2]
[352989414,1739476247757,-500.0,0.00014109,2]
[352989415,1739476247766,-1924.85,0.00014109,2]